fUST/lending_fUST_20251101
["ID","MTS","AMOUNT","RATE_DAILY","PERIOD"]
[392816575,1761989444225,-228436.08095654,0.00037998,20]
[392816595,1761989686271,177.0,9e-07,2]
[392816602,1761989813308,-224.96728295,0.000253,2]
[392816603,1761989815855,-276.52831285,0.000253,2]
[392816604,1761989829811,19198.0,0.00025,2]
[392816605,1761989845625,418.66929077,0.00025206,2]
[392816612,1761989922506,183.088,0.00025206,2]
[392816613,1761990063827,-246.12572023,0.00025347,2]
[392816614,1761990066004,-117.43757759,0.00025347,2]
[392816615,1761990097864,-206.21932608,0.00025353,2]
[392816616,1761990226731,380.0,0.00024712,2]
[392816623,1761990378061,-219.16957539,0.00025388,2]
[392816626,1761990381180,-143.70259264,0.00025388,2]
[392816629,1761990400132,-173.74898234,0.00025568,4]
[392816630,1761990400155,-38.49267927,0.00025571,4]
[392816632,1761990419039,24283.2874659,0.00024699,2]
[392816668,1761990564222,-1346324.00344956,0.00038001,20]
[392816669,1761990564247,-153.61174146,0.00038001,30]
[392816670,1761990564271,-166.589999,0.00038001,30]
[392816671,1761990564294,-316.76145308,0.00038001,20]
[392816672,1761990564322,-151.6869425,0.00038001,120]
[392816815,1761990632014,-135.25630307,0.00025571,4]
[392816818,1761990632023,-603.85777296,0.00025675,2]
[392816820,1761990632033,-603.85777294,0.00025679,2]
[392816822,1761990632042,-603.85777294,0.00025683,2]
[392816823,1761990632051,-916.90100904,0.00025685,2]
[392816826,1761990632060,-300.0,0.00025685,2]
[392816828,1761990632070,-300.0,0.00025685,2]
[392816830,1761990632079,-603.85777294,0.00025686,2]
[392816832,1761990632088,-603.85777294,0.0002569,2]
[392816833,1761990632097,-1200.0,0.00025697,2]
[392816835,1761990632106,-300.0,0.00025735,2]
[392816838,1761990632116,-214.21,0.00025736,10]
[392816839,1761990632125,-366.81,0.00025736,10]
[392816841,1761990632134,-300.0,0.00025745,2]
[392816843,1761990632144,-17378.5462453,0.00025746,2]
[392816846,1761990632153,-500.0,0.00025746,2]
[392816847,1761990632162,-500.0,0.00025746,2]
[392816849,1761990632171,-500.0,0.00025746,2]
[392816852,1761990632181,-500.0,0.00025746,2]
[392816853,1761990632190,-500.0,0.00025746,2]
[392816855,1761990632199,-500.0,0.00025746,2]
[392816858,1761990632208,-500.0,0.00025746,2]
[392816861,1761990632217,-500.0,0.00025746,2]
[392816864,1761990632226,-500.0,0.00025746,2]
[392816867,1761990632235,-500.0,0.00025746,2]
[392816870,1761990632244,-500.0,0.00025746,2]
[392816873,1761990632253,-500.0,0.00025746,2]
[392816875,1761990632262,-500.0,0.00025746,2]
[392816878,1761990632274,-500.0,0.00025746,2]
[392816880,1761990632283,-500.0,0.00025746,2]
[392816882,1761990632293,-500.0,0.00025746,2]
[392816884,1761990632302,-500.0,0.00025746,2]
[392816886,1761990632311,-500.0,0.00025746,2]
[392816888,1761990632320,-500.0,0.00025746,2]
[392816890,1761990632330,-500.0,0.00025746,2]
[392816892,1761990632339,-500.0,0.00025746,2]
[392816894,1761990632347,-500.0,0.00025746,2]
[392816896,1761990632357,-500.0,0.00025746,2]
[392816898,1761990632367,-500.0,0.00025746,2]
[392816899,1761990632376,-500.0,0.00025746,2]
[392816900,1761990632384,-500.0,0.00025746,2]
[392816901,1761990632393,-355.58566967,0.00025746,2]
[392816902,1761990632404,-500.0,0.00025746,2]
[392816903,1761990632417,-500.0,0.00025746,2]
[392816904,1761990632427,-500.0,0.00025746,2]
[392816905,1761990632436,-500.0,0.00025746,2]
[392816906,1761990632446,-500.0,0.00025746,2]
[392816907,1761990632457,-435.39546764,0.00025746,2]
[392816908,1761990632466,-500.0,0.00025746,2]
[392816909,1761990632475,-500.0,0.00025746,2]
[392816910,1761990632487,-500.0,0.00025746,2]
[392816911,1761990632497,-500.0,0.00025746,2]
[392816912,1761990632506,-500.0,0.00025746,2]
[392816913,1761990632516,-406.13267864,0.00025746,2]
[392816914,1761990632525,-254.1295699,0.00025746,2]
[392816915,1761990632535,-500.0,0.00025746,2]
[392816916,1761990632544,-500.0,0.00025746,2]
[392816917,1761990632554,-500.0,0.00025746,2]
[392816918,1761990632563,-500.0,0.00025746,2]
[392816919,1761990632573,-500.0,0.00025746,2]
[392816920,1761990632582,-500.0,0.00025746,2]
[392816921,1761990632592,-500.0,0.00025746,2]
[392816922,1761990632601,-500.0,0.00025746,2]
[392816923,1761990632611,-500.0,0.00025746,2]
[392816924,1761990632620,-500.0,0.00025746,2]
[392816925,1761990632629,-500.0,0.00025746,2]
[392816926,1761990632638,-500.0,0.00025746,2]
[392816927,1761990632647,-500.0,0.00025746,2]
[392816928,1761990632657,-500.0,0.00025746,2]
[392816929,1761990632666,-500.0,0.00025746,2]
[392816930,1761990632676,-500.0,0.00025746,2]
[392816931,1761990632685,-231.72025303,0.00025746,2]
[392816932,1761990632695,-500.0,0.00025746,2]
[392816933,1761990632704,-500.0,0.00025746,2]
[392816934,1761990632714,-500.0,0.00025746,2]
[392816935,1761990632723,-500.0,0.00025746,2]
[392816936,1761990632732,-500.0,0.00025746,2]
[392816937,1761990632741,-500.0,0.00025746,2]
[392816938,1761990632751,-253.1505867,0.00025746,2]
[392816939,1761990632764,-246.8494133,0.00025746,2]
[392816940,1761990632774,-500.0,0.00025746,2]
[392816941,1761990632783,-165.5546307,0.00025746,2]
[392816942,1761990632795,-334.4453693,0.00025746,2]
[392816943,1761990632804,-500.0,0.00025746,2]
[392816944,1761990632813,-500.0,0.00025746,2]
[392816945,1761990632822,-650.0,0.00025746,2]
[392816946,1761990632831,-500.0,0.00025746,2]
[392816947,1761990632840,-500.0,0.00025746,2]
[392816948,1761990632849,-500.0,0.00025746,2]
[392816949,1761990632858,-500.0,0.00025746,2]
[392816950,1761990632867,-500.0,0.00025746,2]
[392816951,1761990632876,-500.0,0.00025746,2]
[392816952,1761990632885,-500.0,0.00025746,2]
[392816953,1761990632895,-500.0,0.00025746,2]
[392816954,1761990632904,-500.0,0.00025746,2]
[392816955,1761990632914,-500.0,0.00025746,2]
[392816956,1761990632923,-500.0,0.00025746,2]
[392816957,1761990632932,-500.0,0.00025746,2]
[392816958,1761990632941,-650.0,0.00025746,2]
[392816959,1761990632951,-500.0,0.00025746,2]
[392816960,1761990632960,-500.0,0.00025746,2]
[392816961,1761990632969,-395.96707078,0.00025746,2]
[392816962,1761990633065,-104.03292922,0.00025746,2]
[392816963,1761990633075,-500.0,0.00025746,2]
[392816964,1761990633085,-34.51327698,0.00025746,2]
[392816978,1761990637904,-305.67,0.00025737,10]
[392816980,1761990637914,-465.48672302,0.00025746,2]
[392816982,1761990637924,-500.0,0.00025746,2]
[392816985,1761990637934,-500.0,0.00025746,2]
[392816987,1761990637944,-460.95892415,0.00025746,2]
[392816989,1761990637953,-138.27493541,0.00025746,2]
[392816991,1761990637964,-361.72506459,0.00025746,2]
[392816993,1761990637974,-500.0,0.00025746,2]
[392816995,1761990637983,-500.0,0.00025746,2]
[392816997,1761990637993,-500.0,0.00025746,2]
[392816999,1761990638002,-500.0,0.00025746,2]
[392817001,1761990638011,-500.0,0.00025746,2]
[392817003,1761990638021,-500.0,0.00025746,2]
[392817005,1761990638030,-500.0,0.00025746,2]
[392817007,1761990638039,-500.0,0.00025746,2]
[392817009,1761990638049,-500.0,0.00025746,2]
[392817011,1761990638059,-500.0,0.00025746,2]
[392817013,1761990638068,-500.0,0.00025746,2]
[392817015,1761990638078,-500.0,0.00025746,2]
[392817017,1761990638087,-500.0,0.00025746,2]
[392817019,1761990638096,-500.0,0.00025746,2]
[392817021,1761990638105,-500.0,0.00025746,2]
[392817023,1761990638115,-500.0,0.00025746,2]
[392817025,1761990638124,-500.0,0.00025746,2]
[392817027,1761990638133,-500.0,0.00025746,2]
[392817029,1761990638143,-500.0,0.00025746,2]
[392817031,1761990638152,-237.97391453,0.00025746,2]
[392817033,1761990638161,-500.0,0.00025746,2]
[392817035,1761990638172,-500.0,0.00025746,2]
[392817037,1761990638181,-500.0,0.00025746,2]
[392817039,1761990638190,-500.0,0.00025746,2]
[392817041,1761990638200,-500.0,0.00025746,2]
[392817043,1761990638209,-500.0,0.00025746,2]
[392817045,1761990638218,-500.0,0.00025746,2]
[392817046,1761990638227,-500.0,0.00025746,2]
[392817047,1761990638236,-500.0,0.00025746,2]
[392817048,1761990638245,-500.0,0.00025746,2]
[392817049,1761990638254,-500.0,0.00025746,2]
[392817050,1761990638263,-500.0,0.00025746,2]
[392817051,1761990638272,-500.0,0.00025746,2]
[392817052,1761990638281,-500.0,0.00025746,2]
[392817053,1761990638290,-500.0,0.00025746,2]
[392817054,1761990638299,-500.0,0.00025746,2]
[392817055,1761990638308,-500.0,0.00025746,2]
[392817056,1761990638317,-500.0,0.00025746,2]
[392817057,1761990638326,-500.0,0.00025746,2]
[392817058,1761990638335,-500.0,0.00025746,2]
[392817059,1761990638345,-500.0,0.00025746,2]
[392817060,1761990638356,-500.0,0.00025746,2]
[392817061,1761990638365,-500.0,0.00025746,2]
[392817062,1761990638375,-500.0,0.00025746,2]
[392817063,1761990638384,-486.29034468,0.00025746,2]
[392817064,1761990638400,-13.70965532,0.00025746,2]
[392817067,1761990638414,-500.0,0.00025746,2]
[392817069,1761990638426,-500.0,0.00025746,2]
[392817070,1761990638436,-500.0,0.00025746,2]
[392817072,1761990638446,-500.0,0.00025746,2]
[392817074,1761990638456,-500.0,0.00025746,2]
[392817076,1761990638467,-500.0,0.00025746,2]
[392817078,1761990638478,-500.0,0.00025746,2]
[392817080,1761990638489,-500.0,0.00025746,2]
[392817082,1761990638499,-135.87368501,0.00025746,2]
[392817084,1761990638513,-364.12631499,0.00025746,2]
[392817086,1761990638523,-500.0,0.00025746,2]
[392817088,1761990638532,-500.0,0.00025746,2]
[392817089,1761990638542,-500.0,0.00025746,2]
[392817090,1761990638551,-500.0,0.00025746,2]
[392817091,1761990638560,-500.0,0.00025746,2]
[392817092,1761990638569,-500.0,0.00025746,2]
[392817093,1761990638578,-500.0,0.00025746,2]
[392817094,1761990638587,-500.0,0.00025746,2]
[392817095,1761990638596,-500.0,0.00025746,2]
[392817096,1761990638605,-500.0,0.00025746,2]
[392817097,1761990638615,-500.0,0.00025746,2]
[392817098,1761990638624,-500.0,0.00025746,2]
[392817099,1761990638633,-500.0,0.00025746,2]
[392817100,1761990638643,-524.14071049,0.00025746,2]
[392817101,1761990638652,-500.0,0.00025746,2]
[392817102,1761990638661,-500.0,0.00025746,2]
[392817103,1761990638670,-500.0,0.00025746,2]
[392817104,1761990638681,-500.0,0.00025746,2]
[392817105,1761990638690,-500.0,0.00025746,2]
[392817106,1761990638699,-500.0,0.00025746,2]
[392817107,1761990638708,-500.0,0.00025746,2]
[392817108,1761990638718,-500.0,0.00025746,2]
[392817109,1761990638727,-500.0,0.00025746,2]
[392817110,1761990638737,-562.31429411,0.00025746,2]
[392817111,1761990638747,-500.0,0.00025746,2]
[392817112,1761990638756,-500.0,0.00025746,2]
[392817113,1761990638765,-500.0,0.00025746,2]
[392817114,1761990638774,-500.0,0.00025746,2]
[392817115,1761990638783,-500.0,0.00025746,2]
[392817116,1761990638792,-500.0,0.00025746,2]
[392817117,1761990638801,-500.0,0.00025746,2]
[392817118,1761990638810,-500.0,0.00025746,2]
[392817119,1761990638820,-500.0,0.00025746,2]
[392817120,1761990638829,-500.0,0.00025746,2]
[392817121,1761990638838,-500.0,0.00025746,2]
[392817122,1761990638847,-500.0,0.00025746,2]
[392817123,1761990638856,-500.0,0.00025746,2]
[392817124,1761990638865,-600.0,0.00025746,2]
[392817125,1761990638874,-500.0,0.00025746,2]
[392817126,1761990638883,-500.0,0.00025746,2]
[392817127,1761990638892,-500.0,0.00025746,2]
[392817128,1761990638901,-500.0,0.00025746,2]
[392817129,1761990638910,-500.0,0.00025746,2]
[392817130,1761990638920,-50000.0,0.00025747,2]
[392817131,1761990638930,-1200.0,0.00025754,2]
[392817132,1761990638939,-549.92644357,0.00025755,2]
[392817133,1761990638948,-500.0,0.00025756,2]
[392817134,1761990638957,-34757.0924906,0.00025765,2]
[392817135,1761990638967,-163.75584666,0.00025769,11]
[392817136,1761990638977,-151.0,0.00025769,2]
[392817137,1761990638986,-151.0,0.00025769,2]
[392817138,1761990638995,-151.0,0.00025769,2]
[392817139,1761990639005,-151.0,0.00025769,2]
[392817140,1761990639014,-151.0,0.00025769,2]
[392817141,1761990639023,-151.0,0.00025769,2]
[392817142,1761990639032,-151.0,0.00025769,2]
[392817143,1761990639042,-151.0,0.00025769,2]
[392817144,1761990639051,-151.0,0.00025769,2]
[392817145,1761990639060,-151.0,0.00025769,2]
[392817146,1761990639069,-151.0,0.00025769,2]
[392817147,1761990639078,-151.0,0.00025769,2]
[392817148,1761990639087,-151.0,0.00025769,2]
[392817149,1761990639096,-151.0,0.00025769,2]
[392817150,1761990639105,-151.0,0.00025769,2]
[392817151,1761990639114,-151.0,0.00025769,2]
[392817152,1761990639123,-151.0,0.00025769,2]
[392817153,1761990639132,-151.0,0.00025769,2]
[392817154,1761990639142,-151.0,0.00025769,2]
[392817155,1761990639151,-151.0,0.00025769,2]
[392817156,1761990639161,-1000.0,0.0002577,2]
[392817157,1761990639170,-1000.0,0.0002577,2]
[392817158,1761990639181,-482.92085642,0.0002577,2]
[392817159,1761990639190,-500.58137149,0.00025773,2]
[392817160,1761990639199,-500.0,0.00025773,2]
[392817161,1761990639208,-500.0,0.00025773,2]
[392817162,1761990639217,-509.16082446,0.00025773,2]
[392817163,1761990639226,-500.0,0.00025773,2]
[392817164,1761990639236,-471.2770702,0.00025773,2]
[392817165,1761990639245,-620.02714629,0.00025773,2]
[392817166,1761990639254,-500.0,0.00025773,2]
[392817167,1761990639264,-500.0,0.00025773,2]
[392817168,1761990639273,-500.0,0.00025773,2]
[392817169,1761990639282,-501.31279384,0.00025773,2]
[392817170,1761990639291,-500.0,0.00025773,2]
[392817171,1761990639301,-121649.823717,0.00025775,2]
[392817172,1761990639310,-5683.37804065,0.00025785,2]
[392817173,1761990639322,-47446.86483224,0.00025785,2]
[392817174,1761990639334,-750.0,0.00025785,2]
[392817180,1761990640163,-50550.5,0.00025785,2]
[392817181,1761990640174,-1929.26402892,0.00025785,2]
[392817273,1761990694711,364.41881643,0.00025453,2]
[392817324,1761990772408,203.0576355,0.00024763,2]
[392817325,1761990783797,-300.0,0.000255,2]
[392817326,1761990783823,-300.0,0.000255,2]
[392817327,1761990783847,-3815.6175944,0.000257,2]
[392817328,1761990783871,-256.7783241,0.000257,2]
[392817329,1761990783895,-300.0,0.00025756,2]
[392817330,1761990783922,-1200.0,0.00025757,2]
[392817331,1761990783947,-500.0,0.00025758,2]
[392817332,1761990783970,-500.0,0.00025758,2]
[392817333,1761990783993,-500.0,0.00025768,2]
[392817334,1761990784017,-500.0,0.00025768,2]
[392817335,1761990784040,-500.0,0.00025768,2]
[392817336,1761990784064,-500.0,0.00025768,2]
[392817337,1761990784089,-500.0,0.00025768,2]
[392817338,1761990784112,-208.78585451,0.00025773,2]
[392817339,1761990784135,-254.73,0.00025775,10]
[392817340,1761990784163,-212.27,0.00025775,10]
[392817341,1761990784188,-464.22370319,0.00025784,2]
[392817342,1761990784213,-500.0,0.00025784,2]
[392817343,1761990784238,-500.0,0.00025784,2]
[392817344,1761990784269,-500.0,0.00025784,2]
[392817345,1761990784407,-500.0,0.00025784,2]
[392817346,1761990784432,-194.90328554,0.00025784,2]
[392817347,1761990784460,-500.0,0.00025784,2]
[392817348,1761990784484,-500.0,0.00025784,2]
[392817349,1761990784512,-500.0,0.00025784,2]
[392817350,1761990784538,-500.0,0.00025784,2]
[392817351,1761990784563,-500.0,0.00025784,2]
[392817352,1761990784588,-539.50951885,0.00025784,2]
[392817353,1761990784613,-500.0,0.00025784,2]
[392817354,1761990784638,-500.0,0.00025784,2]
[392817355,1761990784663,-500.0,0.00025784,2]
[392817356,1761990784687,-500.0,0.00025784,2]
[392817357,1761990784713,-500.0,0.00025784,2]
[392817358,1761990784740,-500.0,0.00025784,2]
[392817359,1761990784768,-217.41407105,0.00025784,2]
[392817360,1761990784796,-500.0,0.00025784,2]
[392817361,1761990784821,-455.36941889,0.00025784,2]
[392817362,1761990784847,-500.0,0.00025784,2]
[392817363,1761990784873,-267.34807541,0.00025784,2]
[392817364,1761990784898,-500.0,0.00025784,2]
[392817365,1761990784923,-500.0,0.00025784,2]
[392817366,1761990784948,-500.0,0.00025784,2]
[392817367,1761990784976,-500.0,0.00025784,2]
[392817368,1761990785001,-500.0,0.00025784,2]
[392817369,1761990785026,-500.0,0.00025784,2]
[392817370,1761990785055,-500.0,0.00025784,2]
[392817371,1761990785080,-500.0,0.00025784,2]
[392817372,1761990785107,-244.40345472,0.00025784,2]
[392817373,1761990785135,-348.79739145,0.00025784,2]
[392817374,1761990785162,-500.0,0.00025784,2]
[392817375,1761990785189,-500.0,0.00025784,2]
[392817376,1761990785216,-500.0,0.00025784,2]
[392817377,1761990785244,-500.0,0.00025784,2]
[392817378,1761990785270,-500.0,0.00025784,2]
[392817379,1761990785295,-500.0,0.00025784,2]
[392817380,1761990785320,-500.0,0.00025784,2]
[392817381,1761990785345,-500.0,0.00025784,2]
[392817382,1761990785372,-500.0,0.00025784,2]
[392817383,1761990785398,-500.0,0.00025784,2]
[392817384,1761990785422,-578639.99309819,0.00025785,2]
[392817385,1761990785447,-165.49,0.000258,14]
[392817386,1761990785475,-8792.79,0.000258,7]
[392817387,1761990785500,-160.0,0.00025865,2]
[392817388,1761990785523,-503.0,0.00025873,2]
[392817389,1761990785548,-18954.16885283,0.0002599,2]
[392817390,1761990785572,-390.48280618,0.00026042,2]
[392817391,1761990785598,-1000.0,0.00026321,2]
[392817392,1761990785622,-518.04796431,0.00026321,2]
[392817393,1761990785647,-1000.0,0.00026321,2]
[392817394,1761990785673,-50000.0,0.00026321,2]
[392817395,1761990785697,-500.0,0.00026373,2]
[392817396,1761990785720,-500.0,0.00026373,2]
[392817397,1761990785744,-500.0,0.00026373,2]
[392817398,1761990785770,-200.0,0.000265,7]
[392817399,1761990785794,-461.19115942,0.00026823,2]
[392817400,1761990785817,-500.0,0.00026868,2]
[392817401,1761990785839,-500.0,0.00026868,2]
[392817402,1761990785862,-500.0,0.00026921,2]
[392817403,1761990785887,-1000.0,0.00026921,2]
[392817404,1761990785911,-1000.0,0.00026921,2]
[392817405,1761990785936,-403.98447456,0.00027,3]
[392817406,1761990785981,176.89,0.00025775,10]
[392817410,1761990799923,150.0,0.00025088,2]
[392817415,1761990806203,241.79995754,0.000248,2]
[392817457,1761990865837,300.0,0.000248,2]
[392817463,1761990876290,300.0,0.000248,2]
[392817467,1761990933346,168.0,0.00026339,120]
[392817468,1761990934829,168.0,0.00027656,120]
[392817469,1761990936121,168.0,0.00029039,120]
[392817470,1761990937433,168.0,0.00030491,120]
[392817471,1761990938622,168.0,0.00032015,120]
[392817479,1761991027428,463.1,0.0003287,120]
[392817481,1761991029052,-235.25054186,0.00025402,2]
[392817482,1761991030720,-140.06704298,0.00025402,2]
[392817531,1761991203426,500.0,0.00025205,2]
[392817532,1761991203788,500.0,0.00025205,2]
[392817533,1761991204158,500.0,0.00025205,2]
[392817534,1761991204513,500.0,0.00025205,2]
[392817535,1761991204890,500.0,0.00025205,2]
[392817536,1761991205255,500.0,0.00025205,2]
[392817537,1761991205610,500.0,0.00025205,2]
[392817538,1761991205962,500.0,0.00025205,2]
[392817539,1761991206310,500.0,0.00025205,2]
[392817540,1761991206661,500.0,0.00025205,2]
[392817541,1761991207007,500.0,0.00025205,2]
[392817542,1761991207355,500.0,0.00025205,2]
[392817543,1761991207720,500.0,0.00025205,2]
[392817544,1761991229824,168.0,0.00026358,120]
[392817545,1761991234418,-170.26992124,0.00025384,2]
[392817552,1761991303261,2195.48085994,0.00024171,2]
[392817553,1761991303551,462.72918252,0.0002457,2]
[392817554,1761991303573,1732.75167742,0.0002457,2]
[392817555,1761991303843,2195.48085994,0.00024911,2]
[392817556,1761991304170,2195.48085994,0.00025055,2]
[392817557,1761991306235,-348.81391947,0.00025257,2]
[392817558,1761991306870,-375.82511611,0.00025257,2]
[392817559,1761991314707,200.0,0.00037986,20]
[392817560,1761991314733,-355.41389615,0.00025257,2]
[392817561,1761991316941,-582.66278515,0.00025257,2]
[392817562,1761991325446,-509.0697,0.00025257,2]
[392817564,1761991332894,364.9650436,0.00024577,2]
[392817568,1761991355065,-213.11478897,0.00030725,32]
[392817569,1761991355090,-213.11478897,0.00031086,48]
[392817570,1761991355113,-213.11478897,0.00031447,63]
[392817571,1761991355137,-213.11478894,0.00031583,30]
[392817572,1761991355160,-213.11478897,0.00031808,79]
[392817573,1761991355183,-164.50075436,0.00031918,56]
[392817574,1761991355207,-213.11478897,0.00032169,94]
[392817575,1761991355233,-159.44044272,0.000332,117]
[392817576,1761991355257,-649.22131141,0.00033231,120]
[392817577,1761991355280,-164.50075436,0.00033832,110]
[392817578,1761991355306,-212.0,0.00034664,120]
[392817579,1761991355330,-160.16915232,0.000349,120]
[392817580,1761991355354,-214.0,0.00035165,120]
[392817581,1761991355378,-717.16307656,0.00035231,120]
[392817582,1761991355406,-183.88,0.000358,30]
[392817583,1761991355432,-160.16915232,0.000359,120]
[392817584,1761991355459,-160.16915232,0.00037,120]
[392817585,1761991355484,-785.1048417,0.00037231,120]
[392817586,1761991355520,-406.8853666,0.000379,30]
[392817587,1761991355554,-183.88,0.000385,30]
[392817588,1761991355581,-181.257559,0.0003861,60]
[392817589,1761991355608,-5000.0,0.000388,30]
[392817590,1761991355636,-1500.0,0.00039,30]
[392817591,1761991355663,-1500.0,0.00039,30]
[392817592,1761991355691,-853.04660685,0.00039231,120]
[392817593,1761991355721,-151.0,0.00039455,120]
[392817594,1761991355749,-5000.0,0.000398,30]
[392817595,1761991355776,-151.0,0.000398,120]
[392817596,1761991355806,-151.0,0.000398,120]
[392817597,1761991355835,-233.456909,0.000398,120]
[392817598,1761991355862,-971.5047778,0.00039806,30]
[392817599,1761991355889,-151.0,0.00039858,120]
[392817600,1761991355917,-151.0,0.00039998,120]
[392817601,1761991355944,-151.0,0.00039998,120]
[392817602,1761991355974,-151.0,0.00039998,120]
[392817603,1761991355998,-151.0,0.00039998,120]
[392817604,1761991356026,-151.0,0.0004,120]
[392817605,1761991356052,-195.238872,0.0004,120]
[392817606,1761991356079,-151.0,0.0004,120]
[392817607,1761991356107,-151.0,0.0004,120]
[392817608,1761991356133,-153.088738,0.0004,120]
[392817609,1761991356161,-151.0,0.0004,120]
[392817610,1761991356189,-151.0,0.0004,120]
[392817611,1761991356217,-500.0,0.000408,60]
[392817612,1761991356246,-314.5912241,0.0004084,30]
[392817613,1761991356274,-151.0,0.00040987,120]
[392817614,1761991356299,-401.8,0.00040987,120]
[392817615,1761991356324,-401.8,0.00040987,120]
[392817616,1761991356351,-151.0,0.00040987,120]
[392817617,1761991356379,-401.8,0.00040987,120]
[392817618,1761991356408,-151.0,0.00040987,120]
[392817619,1761991356435,-401.8,0.00040987,120]
[392817620,1761991356459,-151.0,0.00040987,120]
[392817621,1761991356486,-151.0,0.00040987,120]
[392817622,1761991356512,-182.92,0.00041096,120]
[392817623,1761991356539,-152.79,0.00041096,120]
[392817624,1761991356567,-920.988372,0.00041231,120]
[392817625,1761991356594,-305.5298976,0.00041525,30]
[392817626,1761991356619,-319.9620476,0.00041525,30]
[392817627,1761991356644,-153.8656393,0.00041525,30]
[392817628,1761991356670,-372.7715983,0.00041525,30]
[392817629,1761991356697,-163.728101,0.00041525,30]
[392817630,1761991356723,-163.728101,0.00041525,30]
[392817631,1761991356876,-299.430284,0.00041525,30]
[392817632,1761991356901,-299.430284,0.00041525,30]
[392817633,1761991356926,-163.728101,0.00041525,30]
[392817634,1761991356952,-163.728101,0.00041525,30]
[392817635,1761991356976,-299.430284,0.00041525,30]
[392817636,1761991357000,-299.430284,0.00041525,30]
[392817637,1761991357023,-163.728101,0.00041525,30]
[392817638,1761991357047,-219.36,0.000417,31]
[392817639,1761991357070,-800.0,0.00041946,60]
[392817640,1761991357094,-157.0,0.00042,120]
[392817641,1761991357116,-800.0,0.00042494,60]
[392817642,1761991357139,-503.78886007,0.000428,30]
[392817643,1761991357165,-800.0,0.00043042,60]
[392817644,1761991357190,-50493.215001,0.0004321,120]
[392817645,1761991357215,-151.0,0.0004321,120]
[392817646,1761991357240,-167.733578,0.0004321,120]
[392817647,1761991357264,-167.733578,0.0004321,120]
[392817648,1761991357287,-167.733578,0.0004321,120]
[392817649,1761991357310,-167.733578,0.0004321,120]
[392817650,1761991357334,-494.9861,0.0004322,30]
[392817651,1761991357358,-988.93013715,0.00043231,120]
[392817652,1761991357383,-150.0,0.000435,120]
[392817653,1761991357406,-183.88,0.000435,30]
[392817654,1761991357429,-800.0,0.0004359,60]
[392817655,1761991357453,-500.0,0.0004378,30]
[392817656,1761991357476,-507.38636323,0.0004378,30]
[392817657,1761991357501,-308.970672,0.00043836,120]
[392817658,1761991357526,-308.970672,0.00043836,120]
[392817659,1761991357550,-308.970672,0.00043836,120]
[392817660,1761991357574,-308.970672,0.00043836,120]
[392817661,1761991357597,-1826.04040646,0.00044,120]
[392817662,1761991357621,-800.0,0.00044138,60]
[392817663,1761991357645,-800.0,0.00044686,60]
[392817664,1761991357669,-1500.0,0.00045,30]
[392817665,1761991357693,-1500.0,0.00045,30]